bitfinex/quotes_BTCUSD_20251208
["timestamp","ask_amount","ask_price","bid_price","bid_amount"]
[1765233518196,0.27816926,90897.0,90896.0,0.00035319]
[1765233518413,0.32790926,90897.0,90896.0,0.00035319]
[1765233519326,0.33790926,90897.0,90896.0,0.00235319]
[1765233519954,0.34090926,90897.0,90896.0,0.00235319]
[1765233528660,0.42294928,90897.0,90896.0,0.00235319]
[1765233528808,0.34090926,90897.0,90896.0,0.00235319]
[1765233538651,0.35310737,90897.0,90896.0,0.00235319]
[1765233547418,0.30336737,90897.0,90896.0,0.00235319]
[1765233547827,0.35162737,90897.0,90896.0,0.00235319]
[1765233548870,0.34862737,90897.0,90896.0,0.00235319]
[1765233549023,0.35062737,90897.0,90896.0,0.00235319]
[1765233549570,0.34062737,90897.0,90896.0,0.00035319]
[1765233549930,0.34862737,90897.0,90896.0,0.00235319]
[1765233551313,0.36602737,90897.0,90896.0,0.00235319]
[1765233563993,0.34862737,90897.0,90896.0,0.00235319]
[1765233566299,0.30036737,90897.0,90896.0,0.00235319]
[1765233566695,0.34614737,90897.0,90896.0,0.00235319]
[1765233568651,0.30036737,90897.0,90896.0,0.00235319]
[1765233568889,0.34614737,90897.0,90896.0,0.00235319]
[1765233570539,0.24222737,90897.0,90896.0,0.00235319]
[1765233573428,0.31988737,90897.0,90896.0,0.00235319]
[1765233592591,0.32247737,90897.0,90896.0,0.00235319]
[1765233607112,0.24222737,90897.0,90896.0,0.00235319]
[1765233607319,0.02219811,90897.0,90896.0,0.00235319]
[1765233607868,0.02219811,90897.0,90896.0,0.32535319]
[1765233608022,0.02219811,90897.0,90896.0,0.34735319]
[1765233608641,0.02219811,90897.0,90896.0,0.36475319]
[1765233608842,0.02219811,90897.0,90896.0,0.40304871]
[1765233609450,0.02019811,90897.0,90896.0,0.40304871]
[1765233609653,0.01219811,90897.0,90896.0,0.40104871]
[1765233609866,0.01219811,90897.0,90896.0,0.40204871]
[1765233610098,0.01419811,90897.0,90896.0,0.4655717]
[1765233610950,0.01419811,90897.0,90896.0,1.5708267]
[1765233612284,0.01419811,90897.0,90896.0,1.64962274]
[1765233612493,0.01419811,90897.0,90896.0,1.5708267]
[1765233612699,0.01219811,90897.0,90896.0,1.58402481]
[1765233612904,0.00016716,90897.0,90896.0,1.58402481]
[1765233613114,0.00416716,90897.0,90896.0,1.58402481]
[1765233613309,0.00016716,90897.0,90896.0,1.58302481]
[1765233613653,0.00116716,90897.0,90896.0,1.58402481]
[1765233614126,0.00116716,90897.0,90896.0,1.58602481]
[1765233614368,0.00116716,90897.0,90896.0,1.66483392]
[1765233615309,0.00116716,90897.0,90896.0,1.58602481]
[1765233615548,0.00116716,90897.0,90896.0,1.66879254]
[1765233618395,0.00116716,90897.0,90896.0,1.74750236]
[1765233618996,0.00116716,90897.0,90896.0,1.66679254]
[1765233619191,0.00016716,90897.0,90896.0,1.66779254]
[1765233619618,0.0004,90930.0,90929.0,0.022]
[1765233619835,0.0004,90930.0,90929.0,0.3624]
[1765233620701,0.0004,90930.0,90929.0,0.36251691]
[1765233621322,0.0044,90930.0,90929.0,0.36351691]
[1765233625114,0.0044,90930.0,90929.0,0.00111691]
[1765233625321,0.0044,90930.0,90929.0,0.01851691]
[1765233632601,0.0044,90930.0,90929.0,0.04051691]
[1765233633024,0.0044,90930.0,90929.0,0.01851691]
[1765233634636,0.0044,90930.0,90929.0,0.34151691]
[1765233635903,0.0044,90930.0,90929.0,0.36351691]
[1765233637691,0.0044,90930.0,90929.0,0.04051691]
[1765233639536,0.0044,90930.0,90929.0,0.01851691]
[1765233639743,0.0044,90930.0,90929.0,0.23846874]
[1765233641334,0.0044,90930.0,90929.0,0.01851691]
[1765233641707,0.0044,90930.0,90929.0,0.04051691]
[1765233645382,0.0044,90930.0,90929.0,0.01851691]
[1765233645989,0.0044,90930.0,90929.0,0.01961722]
[1765233646209,0.0044,90930.0,90929.0,0.04161722]
[1765233646438,0.0044,90930.0,90929.0,0.05371457]
[1765233647166,0.0044,90930.0,90929.0,0.03171457]
[1765233647346,0.0044,90930.0,90929.0,0.05371457]
[1765233648276,0.0044,90930.0,90929.0,0.04051691]
[1765233650744,0.0044,90930.0,90929.0,0.36351691]
[1765233652454,0.0044,90930.0,90929.0,0.34151691]
[1765233653254,0.0044,90930.0,90929.0,0.36351691]
[1765233654752,0.0044,90930.0,90929.0,0.34151691]
[1765233655275,0.0044,90930.0,90929.0,0.36351691]
[1765233655516,0.0044,90930.0,90929.0,0.34151691]
[1765233655722,0.0044,90930.0,90929.0,0.36351691]
[1765233659738,0.0044,90930.0,90929.0,1.5483489]
[1765233662174,0.0044,90930.0,90929.0,1.5252879]
[1765233669696,0.0004,90930.0,90929.0,1.5242879]
[1765233669969,0.0054,90930.0,90929.0,1.5252879]
[1765233670534,0.0054,90930.0,90929.0,1.0607069]
[1765233671724,0.0054,90930.0,90929.0,1.13937437]
[1765233671927,0.00087166,90930.0,90929.0,1.0607069]
[1765233672291,0.00087166,90930.0,90929.0,1.07170158]
[1765233672708,0.0004,90960.0,90959.0,0.56487928]
[1765233672880,0.0004,90960.0,90959.0,0.58227928]
[1765233673242,0.0004,90960.0,90959.0,0.3624]
[1765233673848,0.00078701,90960.0,90959.0,0.3624]
[1765233675142,0.00378701,90960.0,90959.0,0.3634]
[1765233677430,0.00378701,90960.0,90959.0,0.3414]
[1765233677638,0.00378701,90960.0,90959.0,0.3634]
[1765233678933,0.00378701,90960.0,90959.0,0.3414]
[1765233679159,0.00378701,90960.0,90959.0,0.56127928]
[1765233679476,0.00378701,90960.0,90959.0,0.3634]
[1765233679876,0.00378701,90960.0,90959.0,0.58327928]
[1765233680441,0.00378701,90960.0,90959.0,0.3634]
[1765233681443,0.00378701,90960.0,90959.0,0.3414]
[1765233684950,0.22366387,90960.0,90959.0,0.3414]
[1765233690578,0.29255674,90960.0,90959.0,0.001]
[1765233690801,0.29255674,90960.0,90953.0,0.03829552]
[1765233690802,0.21989137,90954.0,90953.0,0.03829552]
[1765233691036,0.01099698,90934.0,90931.0,0.03302151]
[1765233691248,0.01099698,90934.0,90928.0,0.03829552]
[1765233691249,0.26713183,90929.0,90928.0,0.03829552]
[1765233691450,0.2687447,90929.0,90928.0,0.03829552]
[1765233691567,0.3089847,90929.0,90928.0,0.03829552]
[1765233691770,0.3089847,90929.0,90914.0,0.03829552]
[1765233691771,0.2199857,90915.0,90914.0,0.03829552]
[1765233691981,0.2671657,90915.0,90914.0,0.03829552]
[1765233692178,0.30901857,90915.0,90914.0,0.03829552]
[1765233692406,0.30901857,90915.0,90914.0,0.03841243]
[1765233692839,0.30901857,90915.0,90914.0,0.00011691]
[1765233694418,0.31801857,90915.0,90914.0,0.00111691]
[1765233698692,0.23059857,90915.0,90914.0,0.00111691]
[1765233700778,0.009,90915.0,90914.0,0.00111691]
[1765233700952,0.009,90915.0,90914.0,0.32411691]
[1765233701555,0.008,90915.0,90914.0,0.32411691]
[1765233701751,0.01099904,90917.0,90914.0,0.32311691]
[1765233702563,0.01099904,90917.0,90914.0,0.00011691]
[1765233702564,0.21998328,90916.0,90914.0,0.00011691]
[1765233702761,0.0279,90915.0,90914.0,0.00011691]
[1765233702963,0.07462,90915.0,90914.0,0.00111691]
[1765233703299,0.07462,90915.0,90914.0,0.00011691]
[1765233703300,0.06862,90915.0,90914.0,0.00011691]
[1765233703498,0.06962,90915.0,90914.0,0.00111691]
[1765233703814,0.06962,90915.0,90914.0,0.00011691]
[1765233704229,0.07562,90915.0,90914.0,0.00111691]
[1765233704438,0.10007693,90915.0,90914.0,0.00111691]
[1765233711775,0.05935693,90915.0,90914.0,0.00111691]
[1765233712278,0.10007693,90915.0,90914.0,0.00111691]
[1765233712826,0.05935693,90915.0,90914.0,0.00111691]
[1765233713036,0.03145693,90915.0,90914.0,0.00111691]
[1765233713621,0.05935693,90915.0,90914.0,0.00111691]
[1765233714663,0.10007693,90915.0,90914.0,0.00111691]
[1765233719006,0.1016898,90915.0,90914.0,0.00111691]
[1765233719584,0.0330698,90915.0,90914.0,0.00111691]
[1765233723169,0.03145693,90915.0,90914.0,0.00111691]
[1765233723472,0.007,90915.0,90914.0,0.00111691]
[1765233723674,0.007,90915.0,90914.0,0.02311691]
[1765233723867,0.007,90915.0,90914.0,0.00111691]
[1765233724082,0.007,90915.0,90914.0,0.34611691]
[1765233727009,0.007,90915.0,90914.0,0.32411691]
[1765233727268,0.007,90915.0,90914.0,0.34611691]
[1765233730327,0.007,90915.0,90914.0,0.02311691]
[1765233730604,0.007,90915.0,90914.0,0.34611691]
[1765233731507,0.007,90915.0,90914.0,0.02311691]
[1765233734104,0.007,90915.0,90914.0,0.00111691]
[1765233738204,0.007,90915.0,90914.0,0.32411691]
[1765233738627,0.006,90915.0,90914.0,0.32411691]
[1765233738978,0.01099904,90917.0,90914.0,0.32311691]
[1765233739393,0.004,90915.0,90914.0,0.32411691]
[1765233739882,0.005,90915.0,90914.0,0.32411691]
[1765233740487,0.001,90915.0,90914.0,0.00011691]
[1765233740851,0.001,90915.0,90914.0,0.00111691]
[1765233741054,0.001,90915.0,90914.0,0.00011691]
[1765233741399,0.006,90915.0,90914.0,0.00111691]
[1765233742451,0.2259857,90915.0,90914.0,0.00111691]
[1765233746266,0.2501957,90915.0,90914.0,0.00111691]
[1765233747304,0.2259857,90915.0,90914.0,0.00111691]
[1765233748229,0.29058857,90915.0,90914.0,0.00111691]
[1765233750794,0.28958857,90915.0,90914.0,0.00111691]
[1765233751199,0.28558857,90915.0,90914.0,0.00011691]
[1765233751405,0.29558857,90915.0,90914.0,0.00111691]
[1765233752510,0.22002926,90897.0,90896.0,0.0385318]
[1765233752705,0.26211926,90897.0,90896.0,0.03858979]
[1765233752911,0.30089926,90897.0,90896.0,0.03858979]
[1765233753825,0.30189926,90897.0,90896.0,0.03858979]
[1765233754167,0.30289926,90897.0,90896.0,0.00129427]
[1765233760949,0.30189926,90897.0,90896.0,0.00029427]
[1765233761152,0.22009221,90871.0,90870.0,0.03829552]
[1765233761384,0.26218221,90871.0,90870.0,5.808e-05]
[1765233761601,0.30096221,90871.0,90870.0,5.808e-05]
[1765233762734,0.30196221,90871.0,90870.0,0.00305808]
[1765233762939,0.30196221,90871.0,90870.0,5.808e-05]
[1765233763321,0.30396221,90871.0,90870.0,0.00105808]
[1765233766730,0.30396221,90871.0,90870.0,0.00182625]
[1765233767783,0.30557508,90871.0,90870.0,0.00182625]
[1765233776455,0.26679508,90871.0,90870.0,0.00182625]
[1765233779792,0.30233508,90871.0,90870.0,0.00182625]
[1765233780404,0.24097221,90871.0,90870.0,0.00182625]
[1765233781024,0.26478221,90871.0,90870.0,0.00182625]
[1765233781227,0.24097221,90871.0,90870.0,0.00182625]
[1765233785666,0.003,90871.0,90870.0,0.00182625]
[1765233785895,0.22309221,90871.0,90870.0,0.00182625]
[1765233790643,0.003,90871.0,90870.0,0.00182625]
[1765233790852,0.003,90871.0,90870.0,0.22192089]
[1765233791359,0.003,90871.0,90870.0,0.54492089]
[1765233791566,0.003,90871.0,90870.0,0.56692089]
[1765233800463,0.003,90871.0,90870.0,1.63879188]
[1765233801231,0.01100158,90896.0,90893.0,0.01100194]
[1765233801457,0.01100158,90896.0,90895.0,0.03829552]
[1765233801807,0.01100146,90897.0,90895.0,0.03829552]
[1765233803243,0.01200146,90897.0,90895.0,0.03829552]
[1765233804018,0.001,90897.0,90895.0,0.25832797]
[1765233804222,0.002,90897.0,90895.0,0.26032797]
[1765233804767,0.002,90897.0,90895.0,0.04029552]
[1765233806843,0.002,90897.0,90895.0,0.26032845]
[1765233808052,0.002,90897.0,90895.0,0.04029552]
[1765233813076,0.22203119,90897.0,90895.0,0.04029552]
[1765233813279,0.002,90897.0,90895.0,0.04029552]
[1765233816505,0.002,90897.0,90896.0,0.0174]
[1765233817307,0.001,90897.0,90896.0,0.0174]
[1765233817439,0.23102939,90898.0,90896.0,0.0174]
[1765233817642,0.001,90897.0,90896.0,0.0194]
[1765233817866,0.002,90897.0,90896.0,0.0194]
[1765233818283,0.001,90897.0,90896.0,0.0194]
[1765233820426,0.002,90897.0,90896.0,0.0194]
[1765233826735,0.002,90897.0,90896.0,0.002]
[1765233826943,0.002,90897.0,90896.0,0.0194]
[1765233827748,0.0247,90897.0,90896.0,0.0194]
[1765233828417,0.02631287,90897.0,90896.0,0.0194]
[1765233828644,0.05976287,90897.0,90896.0,0.002]
[1765233829959,0.08726652,90897.0,90896.0,0.002]
[1765233830789,0.01100218,90891.0,90888.0,0.00023631]
[1765233831016,0.220068,90881.0,90880.0,0.62347104]
[1765233831228,0.22008737,90873.0,90871.0,0.66176656]
[1765233831430,0.22008737,90873.0,90872.0,0.0174]
[1765233832113,0.27623737,90873.0,90871.0,0.03829552]
[1765233832316,0.25353737,90873.0,90872.0,0.0174]
[1765233832638,0.22108737,90873.0,90872.0,0.0174]
[1765233832809,0.22008737,90873.0,90872.0,0.0174]
[1765233833238,0.22108737,90873.0,90872.0,0.0224]
[1765233833440,0.22008737,90873.0,90872.0,0.0174]
[1765233834708,0.22008737,90873.0,90872.0,0.0204]
[1765233834709,0.22108737,90873.0,90872.0,0.0204]
[1765233835732,0.27723737,90873.0,90872.0,0.0204]
[1765233835968,0.27723737,90873.0,90872.0,0.003]
[1765233836837,0.27723737,90873.0,90872.0,0.00347273]
[1765233850965,0.03796,90861.0,90860.0,0.60174621]
[1765233851150,0.03796,90861.0,90860.0,0.00011693]
[1765233851351,0.07043,90861.0,90860.0,0.00011693]
[1765233851949,0.29054644,90861.0,90860.0,0.00011693]
[1765233853342,0.29254644,90861.0,90860.0,0.00611693]
[1765233856064,0.29054644,90861.0,90860.0,0.00011693]
[1765233856264,0.29254644,90861.0,90860.0,0.00311693]
[1765233856628,0.29254644,90861.0,90860.0,0.00347156]
[1765233856832,0.29354644,90861.0,90860.0,0.00347156]
[1765233857423,0.29054644,90861.0,90860.0,0.00047156]
[1765233857657,0.29154644,90861.0,90860.0,0.00047156]
[1765233857975,0.29354644,90861.0,90860.0,0.00447156]
[1765233881580,0.29354644,90861.0,90860.0,0.01666156]
[1765233881929,0.37576755,90861.0,90860.0,0.01666156]
[1765233883143,0.40682888,90861.0,90860.0,0.01266156]
[1765233883424,0.40782888,90861.0,90860.0,0.01466156]
[1765233883628,0.40682888,90861.0,90860.0,0.01266156]
[1765233883986,0.40982888,90861.0,90860.0,0.01466156]
[1765233884219,0.41182888,90861.0,90860.0,0.01466156]
[1765233884736,0.40982888,90861.0,90860.0,0.01466156]
[1765233884950,0.41282888,90861.0,90860.0,0.01466156]
[1765233889311,0.55942888,90861.0,90860.0,0.01466156]
[1765233890679,0.58142888,90861.0,90860.0,0.01466156]
[1765233890901,0.55942888,90861.0,90860.0,0.01466156]
[1765233891121,0.58142888,90861.0,90860.0,0.01466156]
[1765233891371,0.55942888,90861.0,90860.0,0.01466156]
[1765233892407,0.55942888,90861.0,90824.0,0.03306329]
[1765233892408,0.22020368,90825.0,90820.0,0.0002]
[1765233892625,0.23602338,90821.0,90820.0,0.00058646]
[1765233892843,0.25754338,90821.0,90820.0,0.00058646]
[1765233893052,0.25754338,90821.0,90820.0,0.00176915]
[1765233893453,0.25754338,90821.0,90820.0,0.00276915]
[1765233893682,0.25754338,90821.0,90820.0,0.00376915]
[1765233893915,0.25754338,90821.0,90820.0,0.00276915]
[1765233894129,0.25754338,90821.0,90820.0,0.00176915]
[1765233894353,0.23802338,90821.0,90820.0,0.00276915]
[1765233894558,0.25954338,90821.0,90820.0,0.00276915]
[1765233894730,0.29278338,90821.0,90820.0,0.00276915]
[1765233895133,0.25954338,90821.0,90820.0,0.00276915]
[1765233895815,0.25954338,90821.0,90820.0,0.04106467]
[1765233897528,0.25754338,90821.0,90820.0,0.04006467]
[1765233897728,0.25954338,90821.0,90820.0,0.04106467]
[1765233898352,0.25983623,90821.0,90820.0,0.04106467]
[1765233898551,0.29307623,90821.0,90820.0,0.04106467]
[1765233901198,0.00229285,90821.0,90820.0,0.04106467]
[1765233901413,0.00229285,90821.0,90820.0,0.07430906]
[1765233901618,0.00229285,90821.0,90820.0,0.05230906]
[1765233901820,0.00229285,90821.0,90820.0,0.61483705]
[1765233902024,0.00229285,90821.0,90820.0,0.55120566]
[1765233902634,0.00229285,90821.0,90820.0,0.58552324]
[1765233902950,0.00229285,90821.0,90820.0,0.48164924]
[1765233903315,0.00229285,90821.0,90820.0,0.69206224]
[1765233904868,0.00229285,90821.0,90820.0,0.69106224]
[1765233905611,0.00029285,90821.0,90820.0,0.69106224]
[1765233906036,0.00229285,90821.0,90820.0,0.69506224]
[1765233906276,0.00029285,90821.0,90820.0,0.69106224]
[1765233906478,0.00229285,90821.0,90820.0,0.69506224]
[1765233911066,0.02677545,90864.0,90860.0,0.01100594]
[1765233911344,0.0110057,90862.0,90858.0,0.24852749]
[1765233911545,0.0110057,90862.0,90859.0,0.01100606]
[1765233912050,0.01100545,90864.0,90861.0,0.36129552]
[1765233912254,0.01500545,90864.0,90861.0,0.36136744]
[1765233912450,0.004,90864.0,90861.0,0.59248727]
[1765233912653,0.01100485,90869.0,90866.0,0.01100521]
[1765233912947,0.01100497,90868.0,90865.0,0.01100533]
[1765233913886,0.01100485,90869.0,90866.0,0.01100521]
[1765233914169,0.23109184,90873.0,90869.0,0.01100485]
[1765233914296,0.01100448,90872.0,90869.0,0.01100485]
[1765233915139,0.23109184,90873.0,90869.0,0.01100485]
[1765233915140,0.01100436,90873.0,90870.0,0.01100473]
[1765233915445,0.01100448,90872.0,90869.0,0.01100485]
[1765233915958,0.01200448,90872.0,90869.0,0.01100485]
[1765233917762,0.01600448,90872.0,90869.0,0.01200485]
[1765233917957,0.04763448,90872.0,90869.0,0.01200485]
[1765233919544,0.26772638,90872.0,90869.0,0.001]
[1765233919747,0.23609638,90872.0,90869.0,0.001]
[1765233920525,0.26772638,90872.0,90869.0,0.001]
[1765233920715,0.23609638,90872.0,90869.0,0.001]
[1765233921212,0.01600448,90872.0,90869.0,0.01200485]
[1765233922028,0.01600448,90872.0,90869.0,0.001]
[1765233922224,0.005,90872.0,90869.0,0.01200485]
[1765233922801,0.005,90872.0,90869.0,0.23210098]
[1765233923206,0.005,90872.0,90869.0,0.01200485]
[1765233923585,0.005,90872.0,90869.0,0.23209952]
[1765233926808,0.005,90872.0,90869.0,0.01200485]
[1765233927814,0.005,90872.0,90871.0,0.22009221]
[1765233928998,0.001,90872.0,90871.0,0.22009221]
[1765233929198,0.02677315,90883.0,90878.0,0.01100376]
[1765233929336,0.01577,90883.0,90882.0,0.03829552]
[1765233930345,0.009,90883.0,90882.0,0.04929879]
[1765233930965,0.007,90883.0,90882.0,0.04929879]
[1765233931446,0.007,90883.0,90882.0,0.03829552]
[1765233931624,0.22706315,90883.0,90882.0,0.03829552]
[1765233932140,0.22206315,90883.0,90882.0,0.03829552]
[1765233932708,0.22006315,90883.0,90882.0,0.03829552]
[1765233932909,0.22806315,90883.0,90882.0,0.03929552]
[1765233933111,0.22106315,90883.0,90882.0,0.03829552]
[1765233933516,0.22606315,90883.0,90882.0,0.03929552]
[1765233934723,0.006,90883.0,90882.0,0.03929552]
[1765233936104,0.22606315,90883.0,90882.0,0.03929552]
[1765233939726,0.24623315,90883.0,90882.0,0.03929552]
[1765233940142,0.22606315,90883.0,90882.0,0.03929552]
[1765233942450,0.006,90883.0,90882.0,0.03929552]
[1765233961407,0.006,90883.0,90882.0,0.44681851]
[1765233961760,0.006,90883.0,90882.0,0.63224151]
[1765233962183,0.006,90883.0,90882.0,0.658182]
[1765233962352,0.006,90883.0,90882.0,0.601985]
[1765233962498,0.006,90883.0,90882.0,0.472759]
[1765233962704,0.005,90883.0,90882.0,0.472759]
[1765233963175,0.006,90883.0,90882.0,0.472759]
[1765233963374,0.001,90883.0,90882.0,0.471759]
[1765233963585,0.01100158,90896.0,90893.0,0.01100194]
[1765233963721,0.01100158,90896.0,90894.0,0.0174]
[1765233964869,0.01100158,90896.0,90894.0,0.01747192]
[1765233964870,0.01400158,90896.0,90894.0,0.01747192]
[1765233965045,0.01100158,90896.0,90894.0,0.01747192]
[1765233965412,0.01400158,90896.0,90894.0,0.01847192]
[1765233965674,0.003,90896.0,90894.0,0.01847192]
[1765233966084,0.003,90896.0,90894.0,0.01947192]
[1765233970986,0.003,90896.0,90895.0,0.2200341]
[1765233971173,0.003,90896.0,90895.0,0.5650341]
[1765233971936,0.003,90896.0,90895.0,0.5430341]
[1765233972326,0.003,90896.0,90895.0,0.5440341]
[1765233973147,0.0110011,90900.0,90897.0,0.23103068]
[1765233973384,0.0110011,90900.0,90899.0,0.03829552]
[1765233974699,0.0110011,90900.0,90899.0,0.03929552]
[1765233974700,0.004,90900.0,90899.0,0.03929552]
[1765233978695,0.004,90900.0,90899.0,0.25931994]
[1765233983408,0.004,90900.0,90899.0,0.03929552]
[1765233989669,0.004,90900.0,90899.0,0.06129552]
[1765233989853,0.004,90900.0,90899.0,0.07225869]
[1765233991467,0.004,90900.0,90899.0,0.06129552]
[1765233993304,0.004,90900.0,90899.0,0.36229552]
[1765233993501,0.004,90900.0,90899.0,0.34136]
[1765233993652,0.02430287,90900.0,90899.0,0.001]
[1765233993852,0.27267487,90900.0,90899.0,0.001]
[1765233995746,0.02269,90900.0,90899.0,0.001]
[1765233995947,0.05104,90900.0,90899.0,0.001]
[1765233996486,0.271062,90900.0,90899.0,0.001]
[1765233998894,0.27267487,90900.0,90899.0,0.01836]
[1765234000540,0.27267487,90900.0,90899.0,0.001]
[1765234017223,0.22563487,90900.0,90899.0,0.001]
[1765234017556,0.224022,90900.0,90899.0,0.001]
[1765234017761,0.004,90900.0,90899.0,0.023]
[1765234017979,0.004,90900.0,90899.0,0.001]
[1765234018190,0.004,90900.0,90899.0,0.023]
[1765234018385,0.004,90900.0,90899.0,0.001]
[1765234030299,0.004,90900.0,90899.0,0.324]
[1765234031723,0.00295115,90900.0,90899.0,0.324]
[1765234032342,0.00295115,90900.0,90899.0,1.15448899]
[1765234032514,0.00295115,90900.0,90899.0,1.1654896]
[1765234032730,0.00295115,90900.0,90899.0,1.24459332]
[1765234033169,0.00295115,90900.0,90899.0,1.1654896]
[1765234033376,0.0109988,90919.0,90899.0,1.1654896]
[1765234033377,0.01099892,90918.0,90914.0,0.0109994]
[1765234033580,0.01099892,90918.0,90915.0,0.03936]
[1765234033736,0.0109988,90919.0,90917.0,0.03829552]
[1765234034894,0.0139988,90919.0,90917.0,0.03929552]
[1765234035871,0.003,90919.0,90917.0,0.03929552]
[1765234036459,0.003,90919.0,90918.0,0.24197844]
[1765234037364,0.003,90919.0,90918.0,0.21997844]
[1765234037563,0.01099843,90922.0,90919.0,0.0109988]
[1765234037784,0.01099831,90923.0,90920.0,0.23097228]
[1765234038985,0.01099831,90923.0,90920.0,0.01099868]
[1765234039327,0.23096719,90922.0,90917.0,0.04929456]
[1765234039528,0.01099855,90921.0,90920.0,0.001]
[1765234039732,0.01499831,90923.0,90920.0,0.001]
[1765234039905,0.21996876,90922.0,90920.0,0.001]
[1765234040083,0.21996876,90922.0,90917.0,0.03829552]
[1765234040084,0.01099868,90920.0,90917.0,0.03829552]
[1765234040489,0.01099868,90920.0,90917.0,0.03929552]
[1765234040896,0.01099868,90920.0,90917.0,0.03829552]
[1765234041336,0.21997307,90921.0,90917.0,0.03829552]
[1765234041337,0.23496719,90922.0,90918.0,0.21997844]
[1765234041491,0.01099855,90921.0,90917.0,0.04929456]
[1765234041949,0.01099855,90921.0,90918.0,0.33399892]
[1765234042546,0.21992911,90939.0,90932.0,0.01099722]
[1765234042741,0.01099662,90937.0,90933.0,0.01736]
[1765234042971,0.01099662,90937.0,90933.0,0.0283571]
[1765234043149,0.01099662,90937.0,90933.0,0.3513571]
[1765234043913,0.01799662,90937.0,90936.0,0.03829552]
[1765234044087,0.007,90937.0,90936.0,0.03829552]
[1765234044309,0.008,90937.0,90936.0,0.36129552]
[1765234045468,0.21993017,90938.0,90937.0,0.323]
[1765234046107,0.21993006,90938.0,90937.0,0.323]
[1765234046517,0.21993006,90938.0,90936.0,0.03929552]
[1765234046881,0.01389,90941.0,90936.0,0.03829552]
[1765234047086,0.23092077,90941.0,90937.0,0.01199662]
[1765234047290,0.004,90938.0,90937.0,0.324]
[1765234047496,0.004,90938.0,90937.0,0.54393248]
[1765234048213,0.004,90938.0,90937.0,0.56593248]
[1765234048331,0.01099529,90948.0,90946.0,0.022]
[1765234048536,0.01099529,90948.0,90947.0,0.01736]
[1765234049165,0.23088593,90954.0,90949.0,0.01099517]
[1765234049371,0.23087459,90959.0,90953.0,0.03829552]
[1765234049576,0.0109942,90957.0,90954.0,0.33399456]
[1765234049795,0.01099432,90956.0,90953.0,0.03829552]
[1765234050232,0.0109942,90957.0,90954.0,0.33399456]
[1765234050474,0.0109942,90957.0,90953.0,0.0492902]
[1765234050632,0.01099432,90956.0,90953.0,0.03829552]
[1765234051052,0.21988895,90955.0,90953.0,0.03829552]
[1765234052595,0.006,90955.0,90953.0,0.03929552]
[1765234052892,0.22589088,90955.0,90953.0,0.03929552]
[1765234053187,0.006,90955.0,90953.0,0.03929552]
[1765234054152,0.006,90955.0,90953.0,0.36229552]
[1765234056432,0.006,90955.0,90953.0,0.03929552]
[1765234057898,0.006,90955.0,90954.0,0.022]
[1765234058889,0.0109942,90957.0,90955.0,0.022]
[1765234059422,0.0109942,90957.0,90954.0,0.35699456]
[1765234059737,0.0109942,90957.0,90954.0,0.33499456]
[1765234059963,0.01099408,90958.0,90955.0,0.01099444]
[1765234060354,0.007,90957.0,90955.0,0.01199444]
[1765234060760,0.008,90957.0,90956.0,0.54288653]
[1765234060945,0.008,90957.0,90956.0,0.56488653]
[1765234061551,0.01139384,90960.0,90958.0,0.022]
[1765234061761,0.01139384,90960.0,90959.0,0.01736]
[1765234062988,0.01439384,90960.0,90959.0,0.01836]
[1765234064065,0.0034,90960.0,90959.0,0.36336]
[1765234064400,0.0034,90960.0,90959.0,0.36436]
[1765234064958,0.0034,90960.0,90959.0,0.34236]
[1765234066743,0.0034,90960.0,90959.0,0.40488299]
[1765234066935,0.0034,90960.0,90959.0,0.89540299]
[1765234067854,0.0034,90960.0,90959.0,0.87340299]
[1765234068261,0.0034,90960.0,90959.0,0.88439598]
[1765234068968,0.0034,90960.0,90959.0,0.90639598]
[1765234070330,0.0034,90960.0,90959.0,0.64063498]
[1765234070533,0.0034,90960.0,90959.0,0.62327498]
[1765234070867,0.0034,90960.0,90959.0,0.61729398]
[1765234071253,0.0034,90960.0,90959.0,0.56668798]
[1765234071451,0.27003973,90960.0,90959.0,0.002]
[1765234072615,0.27003973,90960.0,90959.0,0.001]
[1765234072836,0.27003973,90960.0,90951.0,0.323]
[1765234072837,0.21989137,90954.0,90951.0,0.323]
[1765234073053,0.23780137,90954.0,90953.0,0.05565552]
[1765234073237,0.26504137,90954.0,90953.0,0.05565552]
[1765234074029,0.26604137,90954.0,90953.0,0.05565552]
[1765234075593,0.27204137,90954.0,90953.0,0.05665552]
[1765234080561,0.22689137,90954.0,90953.0,0.05665552]
[1765234091642,0.23924137,90954.0,90953.0,0.05665552]
[1765234096634,0.28143137,90954.0,90953.0,0.05665552]
[1765234103769,0.25678137,90954.0,90953.0,0.05665552]
[1765234106083,0.28143137,90954.0,90953.0,0.05665552]
[1765234107066,0.23924137,90954.0,90953.0,0.05665552]
[1765234107902,0.25678137,90954.0,90953.0,0.05665552]
[1765234110464,0.28143137,90954.0,90953.0,0.05665552]
[1765234111283,0.23924137,90954.0,90953.0,0.05665552]
[1765234112382,0.25678137,90954.0,90953.0,0.05665552]
[1765234114628,0.23924137,90954.0,90953.0,0.05665552]
[1765234115364,0.007,90954.0,90953.0,0.05665552]
[1765234117631,0.007,90954.0,90953.0,0.27654931]
[1765234121822,0.007,90954.0,90953.0,0.05665552]
[1765234122441,0.007,90954.0,90953.0,0.27654931]
[1765234123062,0.007,90954.0,90953.0,0.05665552]
[1765234125987,0.007,90954.0,90953.0,0.07865552]
[1765234126189,0.007,90954.0,90953.0,0.05665552]
[1765234126735,0.007,90954.0,90953.0,0.06772391]
[1765234126920,0.007,90954.0,90953.0,0.64325362]
[1765234127206,0.007,90954.0,90953.0,0.63218523]
[1765234127573,0.0004,90960.0,90959.0,1.30249499]
[1765234127770,0.0004,90960.0,90959.0,1.27996499]
[1765234128288,0.0004,90960.0,90959.0,1.07352406]
[1765234128488,0.0004,90960.0,90959.0,1.06146006]
[1765234129093,0.0014,90960.0,90959.0,1.06246006]
[1765234129496,0.0014,90960.0,90959.0,1.05704941]
[1765234129692,0.0014,90960.0,90959.0,0.96694906]
[1765234130280,0.0004,90960.0,90959.0,0.96694906]
[1765234130597,0.0044,90960.0,90959.0,0.96794906]
[1765234130794,0.0044,90960.0,90959.0,0.96694906]
[1765234133291,0.0044,90960.0,90959.0,1.0458189]
[1765234134038,0.0044,90960.0,90959.0,0.96694906]
[1765234135051,0.0044,90960.0,90959.0,1.0457944]
[1765234135255,0.0044,90960.0,90959.0,0.96694906]